bitfinex/quotes_SOLUSD_20250201
["timestamp","ask_amount","ask_price","bid_price","bid_amount"]
[1738427714406,82.6,226.27,226.24,0.6629018]
[1738427714621,20.0,226.25,226.24,0.6629018]
[1738427714820,20.0,226.25,226.22,0.66293625]
[1738427715633,20.0,226.24,226.22,0.66293625]
[1738427715870,20.39044672,226.24,226.16,0.063]
[1738427716130,20.0,226.2,226.16,0.063]
[1738427716508,20.0,226.2,226.16,0.72609908]
[1738427718665,82.6,226.19,226.16,0.063]
[1738427718828,82.6,226.18,226.16,0.063]
[1738427721972,82.6,226.18,226.16,0.7261798]
[1738427724471,82.6,226.18,226.16,13.6442546]
[1738427724706,82.6,226.24,226.17,26.32992333]
[1738427724975,0.03,226.25,226.23,12.9180748]
[1738427725152,0.03,226.25,226.19,13.41184853]
[1738427725153,0.03,226.25,226.24,13.58094215]
[1738427726799,0.03,226.25,226.24,26.99279068]
[1738427727094,0.03,226.33,226.26,2.0]
[1738427727397,0.03,226.33,226.27,26.99257397]
[1738427728099,0.03,226.33,226.27,39.91064877]
[1738427728277,0.03,226.33,226.27,46.16174877]
[1738427729886,0.03,226.33,226.27,46.28723877]
[1738427730220,0.03,226.33,226.27,46.16174877]
[1738427734716,0.03,226.33,226.3,2.0]
[1738427734891,0.03,226.33,226.32,28.32992333]
[1738427735707,0.03,226.33,226.32,26.32992333]
[1738427736890,0.03,226.33,226.32,27.32992333]
[1738427737097,0.03,226.33,226.32,28.32992333]
[1738427737605,0.03,226.33,226.32,32.74842333]
[1738427737810,0.03,226.33,226.32,34.30082333]
[1738427743323,0.03,226.36,226.35,13.41184853]
[1738427743518,0.03,226.36,226.35,26.99229255]
[1738427744315,0.03,226.36,226.35,31.41019255]
[1738427744825,0.03,226.48,226.37,41.82543853]
[1738427745124,0.03,226.48,226.43,13.41184853]
[1738427745429,0.03,226.48,226.44,13.58022736]
[1738427745627,0.03,226.48,226.44,26.99207589]
[1738427745928,0.03,226.48,226.44,27.99207589]
[1738427747707,0.03,226.48,226.44,14.07400109]
[1738427750231,0.03,226.48,226.44,0.66215256]
[1738427750390,0.03,226.48,226.41,0.66230701]
[1738427751298,0.03,226.48,226.42,0.66234963]
[1738427751494,0.03,226.48,226.4,13.41184853]
[1738427751699,0.03,226.48,226.41,0.66234352]
[1738427752639,21.6854,226.45,226.34,12.9180748]
[1738427752799,20.39044672,226.44,226.35,0.66249078]
[1738427753126,20.39044672,226.44,226.32,0.66254425]
[1738427753298,20.39044672,226.44,226.33,13.41184853]
[1738427753504,20.39044672,226.44,226.34,0.66252022]
[1738427754125,20.0,226.4,226.33,0.66257701]
[1738427754303,0.39044672,226.39,226.33,0.66257701]
[1738427755119,0.39044672,226.39,226.32,0.66264276]
[1738427755305,21.6554,226.35,226.29,0.66269807]
[1738427755505,0.39044672,226.34,226.26,0.66275382]
[1738427755706,21.6554,226.35,226.26,0.66275382]
[1738427756396,21.6554,226.35,226.27,26.32992333]
[1738427756597,20.0,226.35,226.3,12.9180748]
[1738427756796,20.0,226.35,226.31,0.66264456]
[1738427757622,20.0,226.35,226.29,13.41184853]
[1738427757941,20.0,226.35,226.28,0.66269763]
[1738427758300,0.39044672,226.34,226.28,0.66269763]
[1738427758543,0.39044672,226.34,226.26,13.41184853]
[1738427758707,0.39044672,226.34,226.27,0.66278925]
[1738427759421,20.0,226.35,226.27,0.66278925]
[1738427760333,20.0,226.35,226.25,0.72581277]
[1738427760334,0.39044672,226.34,226.25,0.72581277]
[1738427760537,0.39044672,226.34,226.25,0.063]
[1738427760902,0.39044672,226.34,226.25,0.72583369]
[1738427761211,20.0,226.3,226.25,0.72583369]
[1738427761412,82.6,226.29,226.25,0.72583369]
[1738427761615,82.6,226.29,226.28,12.9180748]
[1738427761816,82.6,226.29,226.28,26.32992333]
[1738427763100,1.13151647,226.48,226.29,13.41184853]
[1738427763101,82.6,226.37,226.29,13.41184853]
[1738427763308,82.6,226.36,226.35,12.9180748]
[1738427764227,82.6,226.36,226.34,12.9180748]
[1738427764413,82.6,226.36,226.35,0.66258276]
[1738427764825,82.6,226.36,226.35,26.99250609]
[1738427765440,1.6518,226.45,226.35,26.99250609]
[1738427765441,82.6,226.43,226.35,26.99250609]
[1738427765606,82.6,226.43,226.38,26.32992333]
[1738427766932,0.03,226.45,226.38,39.91033864]
[1738427767934,0.03,226.45,226.38,39.97333864]
[1738427768639,0.03,226.45,226.38,27.05526384]
[1738427770742,0.03,226.45,226.38,39.97333864]
[1738427773230,0.03,226.45,226.38,44.39063864]
[1738427773833,0.03,226.45,226.38,31.47256384]
[1738427774040,82.6,226.44,226.38,14.13718904]
[1738427775019,20.0,226.41,226.38,0.063]
[1738427775239,82.6,226.4,226.38,0.063]
[1738427776339,0.39044672,226.4,226.38,0.063]
[1738427776523,0.39044672,226.41,226.38,0.063]
[1738427776907,20.0,226.42,226.38,0.063]
[1738427777108,0.39044672,226.41,226.38,0.063]
[1738427778733,20.0,226.42,226.38,0.063]
[1738427779149,7.9152,226.45,226.38,12.9810748]
[1738427779448,0.03,226.45,226.38,27.05530933]
[1738427780148,0.03,226.45,226.38,28.05530933]
[1738427780951,0.03,226.45,226.38,29.05530933]
[1738427786738,0.03,226.45,226.38,27.05530933]
[1738427787356,0.03,226.45,226.38,31.47260933]
[1738427787565,0.03,226.45,226.38,32.47260933]
[1738427788230,0.03,226.45,226.38,27.05530933]
[1738427788446,0.03,226.45,226.38,31.47260933]
[1738427789863,0.03,226.45,226.38,27.05530933]
[1738427790034,0.03,226.45,226.38,14.13723453]
[1738427790234,0.03,226.45,226.38,0.725386]
[1738427790452,82.6,226.44,226.38,0.063]
[1738427791129,82.6,226.44,226.38,0.72544061]
[1738427794472,82.6,226.44,226.38,14.13728914]
[1738427796562,82.6,226.44,226.38,27.05536394]
[1738427797265,82.6,226.44,226.38,31.47266394]
[1738427797471,82.6,226.44,226.38,27.05536394]
[1738427798149,82.6,226.44,226.38,31.47266394]
[1738427800766,82.6,226.44,226.38,32.47266394]
[1738427800942,0.03,226.45,226.38,45.39073874]
[1738427801142,0.03,226.45,226.38,47.02823874]
[1738427801555,0.03,226.45,226.38,60.44372874]
[1738427802168,0.03,226.45,226.44,1.0]
[1738427802469,0.03,226.45,226.44,27.99201222]
[1738427803171,0.03,226.45,226.44,32.40811222]
[1738427806145,0.03,226.48,226.47,2.0]
[1738427806463,0.03,226.48,226.47,33.40744297]
[1738427806836,0.03,226.48,226.47,26.99194297]
[1738427807169,0.03,226.48,226.47,14.07386817]
[1738427807462,0.03,226.48,226.47,0.66201964]
[1738427807654,0.03,226.48,226.44,0.66219867]
[1738427807857,0.03,226.48,226.45,13.41184853]
[1738427808032,0.03,226.48,226.46,0.66218184]
[1738427809059,0.03,226.48,226.47,13.41184853]
[1738427810763,0.03,226.48,226.47,26.32992333]
[1738427810949,0.03,226.48,226.47,26.9919989]
[1738427811270,0.03,226.48,226.47,31.4074989]
[1738427811645,0.03,226.48,226.47,32.4074989]
[1738427815472,0.03,226.48,226.47,31.4074989]
[1738427816553,0.03,226.48,226.47,0.66207557]
[1738427816765,0.03,226.48,226.45,0.72520331]
[1738427818346,0.03,226.48,226.46,13.41184853]
[1738427818547,0.03,226.48,226.47,0.66218406]
[1738427819486,0.03,226.48,226.46,13.41184853]
[1738427819660,0.03,226.48,226.47,0.66221229]
[1738427821144,82.63,226.48,226.47,0.66221229]
[1738427821362,82.63,226.48,226.45,0.063]
[1738427822262,20.0,226.46,226.45,0.063]
[1738427822680,0.03,226.48,226.45,0.063]
[1738427823686,0.03,226.48,226.45,12.9810748]
[1738427823883,0.03,226.48,226.46,0.66220278]
[1738427824881,0.03,226.48,226.45,0.063]
[1738427827250,0.03,226.48,226.45,0.72523827]
[1738427827454,0.03,226.48,226.45,0.063]
[1738427829778,0.03,226.48,226.46,12.9180748]
[1738427829985,0.03,226.48,226.47,0.66218083]
[1738427832084,0.03,226.48,226.45,13.47484853]
[1738427832085,0.03,226.48,226.45,0.063]
[1738427832462,20.03,226.48,226.45,0.063]
[1738427832858,0.39044672,226.47,226.45,0.063]
[1738427833365,1.5975,226.46,226.45,0.0238]
[1738427836800,0.39044672,226.47,226.45,0.0238]
[1738427837166,20.0,226.47,226.45,0.0238]
[1738427839215,0.39044672,226.46,226.45,0.0238]
[1738427841313,0.42044672,226.46,226.45,0.0238]
[1738427844921,0.03,226.46,226.45,0.0238]
[1738427847309,0.03,226.46,226.45,13.60423249]
[1738427847517,0.03,226.46,226.45,27.01608102]
[1738427851711,0.03,226.46,226.45,31.43198102]
[1738427853124,0.03,226.46,226.45,32.43198102]
[1738427854416,0.03,226.46,226.45,31.43198102]
[1738427855331,0.03,226.46,226.45,27.01608102]
[1738427856546,0.03,226.46,226.45,31.43198102]
[1738427856835,0.03,226.46,226.45,32.43198102]
[1738427858111,0.03,226.48,226.47,2.0]
[1738427858312,0.03,226.48,226.47,42.03546109]
[1738427858620,0.03,226.48,226.47,28.99189629]
[1738427859636,0.03,226.48,226.47,33.40739629]
[1738427861306,0.03,226.48,226.47,46.32547109]
[1738427861703,0.03,226.48,226.47,33.40739629]
[1738427863733,0.03,226.48,226.47,32.40739629]
[1738427871640,0.03,226.48,226.47,45.32547109]
[1738427871940,0.03,226.48,226.47,46.32547109]
[1738427872923,0.03,226.48,226.47,46.70194109]
[1738427873241,0.03,226.51,226.5,14.41184853]
[1738427873443,0.03,226.51,226.5,27.99187167]
[1738427874914,0.03,226.51,226.5,32.40687167]
[1738427875116,0.03,226.51,226.5,33.48714243]
[1738427875320,0.03,226.61,226.54,21.0]
[1738427875539,0.03,226.61,226.58,26.32992333]
[1738427877148,0.03,226.61,226.58,44.32318194]
[1738427877451,0.03,226.61,226.58,45.32318194]
[1738427878347,0.03,226.61,226.58,32.40510714]
[1738427878954,0.03,226.61,226.58,26.99170714]
[1738427880647,0.03,226.61,226.58,14.07363234]
[1738427880850,0.03,226.61,226.58,13.41184853]
[1738427882665,82.6,226.6,226.51,0.6619295]
[1738427883121,82.6,226.6,226.51,13.5800043]
[1738427884055,82.6,226.6,226.51,14.07377803]
[1738427885149,20.0,226.57,226.51,14.07377803]
[1738427885534,20.0,226.57,226.51,0.6619295]
[1738427885842,82.99044672,226.56,226.45,13.60394882]
[1738427886047,84.1496,226.55,226.45,13.60394882]
[1738427886347,82.6,226.54,226.46,13.41184853]
[1738427886556,82.6,226.53,226.47,0.66219537]
[1738427887452,1.5496,226.55,226.46,14.07405869]
[1738427887453,82.6,226.52,226.46,14.07405869]
[1738427887651,82.99044672,226.52,226.46,13.41184853]
[1738427888137,82.99044672,226.52,226.45,0.68606178]
[1738427888340,82.6,226.51,226.45,0.0238]
[1738427888740,82.6,226.51,226.45,13.43564853]
[1738427888947,82.6,226.51,226.46,0.66227468]
[1738427890775,82.6,226.51,226.45,0.0238]
[1738427890776,0.39044672,226.5,226.45,0.0238]
[1738427890948,82.99044672,226.51,226.45,0.0238]
[1738427891968,82.6,226.5,226.45,0.0238]
[1738427892156,0.39044672,226.49,226.45,0.0238]
[1738427892464,21.5035,226.46,226.45,0.0238]
[1738427894766,1.5035,226.46,226.45,0.0238]
[1738427897248,6.284,226.45,226.38,0.063]
[1738427897489,20.0,226.42,226.38,0.063]
[1738427897675,0.39044672,226.41,226.38,0.063]
[1738427897983,6.284,226.39,226.38,0.063]
[1738427898154,20.0,226.36,226.28,0.063]
[1738427898350,1.5035,226.34,226.28,0.063]
[1738427898563,0.39044672,226.33,226.28,0.063]
[1738427898967,20.0,226.32,226.28,0.063]
[1738427899188,0.39044672,226.31,226.28,0.063]
[1738427900595,20.0,226.32,226.28,0.063]
[1738427901601,82.6,226.35,226.29,26.32992333]
[1738427901765,6.284,226.39,226.32,13.41184853]
[1738427901967,0.39044672,226.39,226.33,0.6626519]
[1738427902968,20.0,226.38,226.32,14.07450787]
[1738427903481,0.39044672,226.4,226.35,12.9180748]
[1738427903791,82.6,226.41,226.34,0.66249964]
[1738427904465,0.39044672,226.4,226.34,0.66249964]
[1738427904768,0.39044672,226.4,226.31,20.61997125]
[1738427904769,0.39044672,226.4,226.32,0.66261902]
[1738427905168,82.6,226.41,226.33,13.41184853]
[1738427905371,82.6,226.41,226.35,13.41184853]
[1738427906778,82.6,226.4,226.35,13.41184853]
[1738427908184,82.6,226.4,226.36,0.66256964]
[1738427908361,82.6,226.4,226.37,13.41184853]
[1738427909661,82.6,226.4,226.34,0.66252967]
[1738427910172,82.6,226.4,226.35,13.41184853]
[1738427911088,0.39044672,226.39,226.32,0.66260941]
[1738427911382,82.6,226.38,226.3,0.66267136]
[1738427911558,0.39044672,226.37,226.31,13.41184853]
[1738427911959,82.6,226.38,226.29,13.41184853]
[1738427912183,82.6,226.38,226.31,13.41184853]
[1738427912364,82.6,226.38,226.32,0.66266796]
[1738427912567,0.39044672,226.37,226.29,0.66266796]
[1738427912788,82.6,226.38,226.29,0.66266796]
[1738427915769,82.6,226.37,226.29,0.66266796]
[1738427916293,82.6,226.37,226.33,13.41184853]
[1738427916591,82.6,226.37,226.32,13.41184853]
[1738427917873,0.39044672,226.36,226.3,0.66269954]
[1738427918104,82.6,226.35,226.28,0.72574933]
[1738427918272,0.39044672,226.34,226.28,0.063]
[1738427918467,82.6,226.33,226.28,0.063]
[1738427918869,0.39044672,226.32,226.28,0.063]
[1738427919276,82.6,226.31,226.28,0.063]
[1738427919591,82.99044672,226.3,226.28,0.063]
[1738427920475,82.6,226.29,226.28,0.063]
[1738427920675,0.39044672,226.34,226.28,0.063]
[1738427921695,0.39044672,226.35,226.28,0.063]
[1738427924384,0.39044672,226.35,226.28,0.72584937]
[1738427924615,20.39044672,226.36,226.29,13.41184853]
[1738427924913,7.86009058,226.4,226.28,0.72584937]
[1738427924914,82.6,226.34,226.31,13.41184853]
[1738427925096,82.6,226.34,226.3,0.66273925]
[1738427925301,82.6,226.34,226.29,0.66274887]
[1738427925677,82.6,226.34,226.3,13.41184853]
[1738427925987,82.6,226.34,226.32,13.41184853]
[1738427926806,82.6,226.34,226.3,0.66270559]
[1738427927489,82.6,226.34,226.31,13.41184853]
[1738427927806,82.6,226.34,226.33,13.41184853]
[1738427928409,82.6,226.34,226.32,0.66269358]
[1738427928590,82.6,226.34,226.28,0.72570472]
[1738427928907,82.6,226.33,226.28,0.72570472]
[1738427929206,82.6,226.33,226.29,13.41184853]
[1738427932610,82.6,226.33,226.29,26.31171246]
[1738427932787,82.6,226.33,226.32,26.31171246]
[1738427934000,82.6,226.33,226.32,13.41184853]
[1738427934202,82.6,226.33,226.32,14.0745122]
[1738427935908,82.6,226.33,226.32,13.41184853]
[1738427936115,82.6,226.33,226.28,0.72572517]
[1738427936491,20.0,226.38,226.29,13.41184853]
[1738427936685,0.39044672,226.37,226.29,13.41184853]
[1738427937406,0.39044672,226.37,226.3,0.66274893]
[1738427938309,0.39044672,226.37,226.3,0.72574893]
[1738427939896,0.39044672,226.37,226.3,0.063]
[1738427940609,20.0,226.33,226.3,0.063]
[1738427940816,0.39044672,226.32,226.3,0.063]
[1738427944019,82.6,226.31,226.3,0.063]
[1738427944613,83.99044672,226.31,226.3,0.063]
[1738427946296,82.99044672,226.31,226.3,0.063]
[1738427948322,20.39044672,226.31,226.3,0.063]
[1738427949231,20.0,226.31,226.3,0.063]
[1738427950911,0.39044672,226.33,226.3,0.063]
[1738427951301,20.0,226.34,226.3,0.063]
[1738427951503,0.39044672,226.33,226.3,0.063]
[1738427953714,20.0,226.36,226.3,0.063]
[1738427954111,0.39044672,226.37,226.3,13.47484853]
[1738427954438,0.03,226.38,226.32,13.41184853]
[1738427954643,0.03,226.38,226.33,0.66265242]
[1738427954811,0.03,226.38,226.32,0.66265242]
[1738427955014,0.03,226.38,226.3,0.6668259]
[1738427955608,0.03,226.38,226.31,13.41184853]
[1738427956241,0.42044672,226.38,226.31,13.41184853]
[1738427956527,0.03,226.38,226.31,13.41184853]
[1738427956708,0.03,226.38,226.33,13.41184853]
[1738427956909,0.03,226.38,226.34,0.66262844]
[1738427957432,0.03,226.38,226.35,13.41184853]
[1738427957608,0.03,226.38,226.36,0.66257221]
[1738427957805,0.03,226.38,226.37,13.41184853]
[1738427972540,0.03,226.38,226.36,2.33517221]
[1738427972845,0.03,226.38,226.36,1.6726]
[1738427973844,0.03,226.38,226.37,14.07441466]
[1738427974033,0.03,226.38,226.37,13.41184853]
[1738427976744,0.03,226.38,226.36,1.6726]
[1738427978445,0.03,226.38,226.36,0.063]
[1738427981050,82.6,226.37,226.36,0.063]
[1738427986048,82.6,226.37,226.36,13.47484853]
[1738427986236,82.6,226.37,226.36,0.063]
[1738427992752,82.6,226.37,226.36,21.72432028]
[1738427993059,0.03,226.38,226.36,21.72432028]
[1738427993252,0.03,226.38,226.37,14.07438931]
[1738427994864,0.03,226.38,226.36,0.063]
[1738428002065,0.03,226.38,226.36,13.47484853]
[1738428002250,0.03,226.38,226.37,14.07441533]
[1738428002564,0.03,226.38,226.37,22.32388708]
[1738428004849,0.03,226.38,226.37,28.27338708]
[1738428005060,0.03,226.42,226.41,20.0]
[1738428005268,0.39044672,226.55,226.41,20.0]
[1738428005269,82.6,226.54,226.42,13.41184853]
[1738428005468,82.99044672,226.54,226.47,8.24947175]
[1738428005764,82.99044672,226.54,226.48,0.66222443]
[1738428005967,82.99044672,226.54,226.42,0.66226183]
[1738428006149,82.6,226.53,226.42,0.66226183]
[1738428006353,0.39044672,226.52,226.4,0.66233201]
[1738428006571,20.0,226.5,226.38,0.66244963]
[1738428006870,20.39044672,226.49,226.38,0.66244963]
[1738428007056,82.6,226.48,226.39,13.41184853]
[1738428007242,0.39044672,226.47,226.41,13.41184853]
[1738428008272,0.39044672,226.47,226.39,13.41184853]
[1738428009370,0.39044672,226.47,226.39,0.66245978]
[1738428010774,82.6,226.46,226.39,0.66245978]
[1738428013871,82.99044672,226.45,226.39,0.66245978]
[1738428014074,82.6,226.45,226.39,0.66245978]
[1738428016070,20.0,226.42,226.39,0.66245978]
[1738428016261,20.0,226.42,226.38,13.41184853]
[1738428016871,82.6,226.41,226.36,0.72546672]
[1738428017069,82.6,226.4,226.36,0.063]
[1738428017262,0.39044672,226.39,226.36,0.063]
[1738428018964,82.6,226.38,226.36,0.063]
[1738428019274,0.39044672,226.37,226.36,0.063]
[1738428019683,0.39044672,226.42,226.36,0.063]
[1738428019977,20.0,226.38,226.36,0.063]
[1738428020280,0.39044672,226.37,226.36,0.063]
[1738428020781,0.39044672,226.42,226.36,0.063]
[1738428020954,20.0,226.38,226.36,0.063]
[1738428021154,0.39044672,226.37,226.36,0.063]
[1738428021895,0.42044672,226.42,226.36,0.063]
[1738428022178,20.0,226.38,226.36,0.063]
[1738428022481,0.39044672,226.37,226.36,0.063]
[1738428022878,0.42044672,226.42,226.36,0.063]
[1738428023058,20.0,226.38,226.36,0.063]
[1738428023260,0.39044672,226.37,226.36,0.063]
[1738428024361,0.39044672,226.41,226.36,0.063]
[1738428026290,20.0,226.39,226.36,0.063]
[1738428026461,0.39044672,226.38,226.36,0.063]
[1738428026663,1.0,226.37,226.36,0.063]
[1738428027287,1.0,226.37,226.3,0.063]
[1738428027288,1.0,226.35,226.3,0.063]
[1738428027493,20.0,226.33,226.3,0.063]
[1738428027704,21.39044672,226.32,226.3,0.063]
[1738428028486,20.39044672,226.32,226.3,0.063]
[1738428028796,21.39044672,226.32,226.3,0.063]
[1738428029374,20.39044672,226.32,226.3,0.063]
[1738428031465,82.6,226.31,226.3,0.063]
[1738428031872,0.39044672,226.34,226.3,0.063]
[1738428032374,20.0,226.32,226.3,0.063]
[1738428032585,0.39044672,226.31,226.3,0.063]
[1738428033584,0.34044672,226.31,226.3,0.063]
[1738428033993,1.0,226.35,226.3,0.063]
[1738428033994,0.34044672,226.34,226.3,0.063]
[1738428036074,2.0,226.37,226.3,0.063]
[1738428036075,0.34044672,226.36,226.3,0.063]
[1738428036889,1.0,226.35,226.3,0.063]
[1738428037091,0.34044672,226.34,226.3,0.063]
[1738428037598,1.0,226.33,226.3,0.063]
[1738428037801,0.34044672,226.32,226.3,0.063]
[1738428038010,20.34044672,226.32,226.3,0.063]
[1738428038379,21.34044672,226.32,226.3,0.063]
[1738428038615,1.0,226.3,226.28,0.063]
[1738428038771,1.0,226.31,226.25,0.063]
[1738428038772,2.0,226.28,226.25,0.063]
[1738428039108,0.34044672,226.27,226.25,0.063]
[1738428041096,0.34044672,226.29,226.25,0.063]
[1738428041424,21.0,226.27,226.25,0.063]
[1738428041594,0.34044672,226.26,226.25,0.063]
[1738428044628,0.34044672,226.28,226.25,0.063]
[1738428044923,20.0,226.27,226.25,0.063]
[1738428045234,0.34044672,226.26,226.25,0.063]
[1738428046005,20.0,226.27,226.25,0.063]
[1738428046223,0.34044672,226.26,226.25,0.063]
[1738428050000,1.0,226.24,226.23,0.063]
[1738428050345,20.0,226.21,226.16,0.063]
[1738428050517,0.34044672,226.2,226.16,0.063]
[1738428051504,0.34044672,226.21,226.16,0.063]
[1738428054724,1.34044672,226.21,226.16,0.063]
[1738428054903,20.0,226.17,226.16,0.063]
[1738428055103,20.34044672,226.17,226.16,0.063]
[1738428055849,20.34044672,226.17,226.15,0.063]
[1738428055850,21.34044672,226.17,226.15,0.063]
[1738428056006,20.0,226.14,226.1,0.063]
[1738428056346,1.0,226.12,226.1,0.063]
[1738428056503,1.34044672,226.12,226.1,0.063]
[1738428057005,1.34044672,226.12,226.07,0.063]
[1738428057006,1.0,226.11,226.07,0.063]
[1738428057208,0.34044672,226.1,226.07,0.063]
[1738428057407,1.0,226.09,226.07,0.063]
[1738428057738,0.34044672,226.08,226.07,0.063]
[1738428059629,0.34044672,226.1,226.07,0.063]
[1738428059829,1.0,226.09,226.07,0.063]
[1738428060130,1.0,226.06,226.03,0.063]
[1738428060326,21.34044672,226.06,226.03,0.063]
[1738428060532,22.34044672,226.06,226.03,0.063]
[1738428061430,1.0,226.04,226.03,0.063]
[1738428061724,1.34044672,226.04,226.03,0.063]
[1738428063035,2.34044672,226.04,226.03,0.063]
[1738428063810,1.34044672,226.04,226.03,0.063]
[1738428064039,0.34044672,226.04,226.03,0.063]
[1738428064238,2.34044672,226.04,226.03,0.063]
[1738428064742,1.34044672,226.04,226.03,0.063]
[1738428064913,2.34044672,226.04,226.03,0.063]
[1738428065733,1.34044672,226.04,226.03,0.063]
[1738428065941,2.34044672,226.04,226.03,0.063]
[1738428067917,1.34044672,226.04,226.03,0.063]
[1738428068532,0.34044672,226.04,226.03,0.063]
[1738428068844,20.34044672,226.05,226.03,0.063]
[1738428069422,20.37044672,226.05,226.03,0.063]
[1738428070244,0.37044672,226.05,226.03,0.063]
[1738428070827,1.0,226.04,226.03,0.063]
[1738428071622,11.70057556,226.04,226.03,0.063]
[1738428071951,2.0,226.04,226.03,0.063]
[1738428073253,84.6,226.04,226.03,0.063]
[1738428075738,2.0,226.04,226.03,0.063]
[1738428075939,1.0,225.97,225.96,0.063]
[1738428076155,1.34044672,225.97,225.96,0.063]
[1738428085455,0.34044672,225.97,225.96,0.063]
[1738428085637,0.34044672,225.99,225.96,0.063]
[1738428086364,0.34044672,225.99,225.96,8.34822334]
[1738428086535,0.34044672,226.02,225.97,8.28522334]
[1738428087430,0.34044672,226.02,225.99,8.28522334]
[1738428087637,0.34044672,226.02,226.0,13.41184853]
[1738428087833,0.34044672,226.02,226.01,14.94864853]
[1738428089058,0.03,226.05,226.02,13.41184853]
[1738428089245,0.03,226.05,226.04,13.41184853]
[1738428089763,0.03,226.05,226.01,1.5368]
[1738428090144,1.34044672,226.04,225.98,6.2741]
[1738428090963,1.34044672,226.04,225.96,13.47484853]
[1738428091759,1.34044672,226.04,225.96,0.063]
[1738428092365,1.0,226.02,225.96,0.063]
[1738428092560,0.34044672,226.01,225.96,0.063]
[1738428095043,20.0,225.99,225.96,0.063]
[1738428095244,0.34044672,225.98,225.96,0.063]
[1738428098654,0.34044672,225.99,225.96,0.063]
[1738428098972,20.34044672,225.99,225.96,0.063]
[1738428101069,0.34044672,225.99,225.96,0.063]
[1738428102074,0.34044672,226.0,225.96,0.063]
[1738428103452,0.34044672,226.01,225.96,0.063]
[1738428103792,20.0,226.0,225.96,0.063]
[1738428104085,0.34044672,225.99,225.96,0.063]
[1738428112560,0.34044672,225.99,225.97,13.41184853]
[1738428113090,20.34044672,226.01,225.97,13.41184853]
[1738428116306,20.34044672,226.01,225.99,13.41184853]
[1738428116594,0.34044672,226.01,225.99,15.05714853]
[1738428116796,0.063,226.02,225.99,15.05714853]
[1738428116999,0.40344672,226.02,225.99,15.05714853]
[1738428118088,0.063,226.02,225.99,15.05714853]
[1738428118266,0.40344672,226.02,225.99,27.98905581]
[1738428118764,0.40344672,226.02,225.99,15.05714853]
[1738428119180,0.063,226.02,225.99,15.05714853]
[1738428119385,0.40344672,226.02,225.99,15.05714853]
[1738428119683,0.40344672,226.02,225.99,1.6453]
[1738428119996,0.40344672,226.02,225.96,0.063]
[1738428123086,0.063,226.02,225.96,0.063]
[1738428123290,0.34044672,226.01,225.96,0.063]
[1738428128175,1.0,226.0,225.96,0.063]
[1738428128491,20.0,225.97,225.96,0.063]
[1738428128691,20.34044672,225.97,225.96,0.063]
[1738428131387,0.34044672,225.97,225.96,0.063]
[1738428131590,0.34044672,225.99,225.96,0.063]
[1738428133277,0.34044672,225.99,225.98,13.41184853]
[1738428133600,0.063,226.02,225.98,13.41184853]
[1738428133816,0.40344672,226.02,225.98,26.34375581]
[1738428134124,0.063,226.02,225.98,26.34375581]
[1738428134413,0.063,226.02,226.0,13.41184853]
[1738428135283,0.063,226.02,225.98,12.93190728]
[1738428135620,0.063,226.02,225.98,26.34375581]
[1738428135997,0.063,226.02,225.97,14.55890728]
[1738428136314,0.34044672,226.01,225.97,14.55890728]
[1738428137491,0.063,226.02,225.98,13.41184853]